Cogmind - Beta 15 @@@ ROGUE MODE // 2025.08.28 @ 15:49:58 Player: Inverisimilidude Result: Destroyed by Y-54 Guardian with Gatling Laser Performance ------------- Evolutions (3) 1500 Regions Visited (12) 2400 Robots Destroyed (137) 685 Value Destroyed (6397) 6397 Prototype IDs (33) 660 Alien Tech Used (1) 200 Bonus (3101) 3101 TOTAL SCORE: 14943 Bonus ------- High Alert Combat Kills 723 Follower Combat Kills 209 Entered Garrisons 400 Used RIF Installer 1500 Aligned with FarCom 300 Friendly Fire -31 Cogmind --------- Core Integrity 0/700 Matter 19/300 Energy 150/150 System Corruption 14% Temperature Cool (12) Movement Treading (460) Ox3 Location -7/Lower Caves Parts ------- > --- POWER (1) -------- Micro Nuclear Core > --- PROPULSION (5) --- Spiked Treads Spiked Treads Aluminum Leg > --- UTILITY (6) ------ Cargo Storage Unit Heart of Steel > --- WEAPON (2) ------- (None) > --- INVENTORY (30) --- Improved Heat Sink Improved Heat Sink High-capacity Matter Pod (200) Gravity Neutralizer Experimental Sensor Array Advanced ECM Suite Layered Light Armor Plating EM Shield Relay Coupler [NC] (29) Dynamic Insulation System Heavy Laser PD Laser Heavy Plasma Cannon Gauss Rifle Flak Gun Heavy Machine Gun Chainsword Peak State ------------ > --- POWER ------------ Improved Deuterium Engine > --- PROPULSION ------- Improved Heavy Treads Improved Heavy Treads Carbon-fiber Leg > --- UTILITY ---------- Advanced Heat Sink Cargo Storage Unit Gravity Neutralizer Improved Signal Interpreter > --- WEAPON ----------- AWS/Thermal > --- INVENTORY -------- Deuterium Engine Deuterium Engine Micro Nuclear Core Aluminum Leg Wheel Improved Heat Sink Improved Heat Sink Improved Heat Sink High-capacity Matter Pod Experimental Sensor Array Advanced ECM Suite EM Shield Relay Coupler [NC] Dynamic Insulation System Thief Drone Bay Heavy Laser PD Laser Heavy Plasma Cannon Gauss Rifle Flak Gun Flak Gun Hypervelocity Gauss Rifle Heavy Machine Gun Assault Cannon Grenade Launcher Chainsword [Rating: 78] Favorites ----------- Power Improved Deuterium Engine Engine Improved Deuterium Engine Power Core Micro Nuclear Core Propulsion Light Treads Treads Light Treads Leg Carbon-fiber Leg Wheel Compact Wheel Utility High-capacity Storage Unit Device Improved Heat Sink Storage High-capacity Storage Unit Processor Improved Signal Interpreter Hackware Hacking Suite Protection Layered Medium Armor Plating Weapon High-powered Shotgun Energy Gun Medium Laser Energy Cannon Phase Cannon Ballistic Gun High-powered Shotgun Ballistic Cannon Light Cannon Launcher Grenade Launcher Special Weapon Mining Laser Slashing Weapon Chainsword Build | -11 -10 -10 -10 -9 -8 -8 -8 -7 -7 -7 -7 -7 ------- Run | Yrd Mat Min Exi Min Mat Gar Mat Fac Gar Fac Low Low Slots Evolved 6 | . . . . . 4 . . 2 . . . . Power . | . . . . . . . . . . . . . Propulsion 3 | . . . . . 2 . . 1 . . . . Utility 3 | . . . . . 2 . . 1 . . . . Weapon . | . . . . . . . . . . . . . Parts Attached 113 | 7 6 5 . 1 18 17 11 9 24 7 8 . Power 17 | 1 2 1 . . 4 2 1 1 3 1 1 . Engine 15 | 1 2 1 . . 3 2 1 1 3 1 . . Core 2 | . . . . . 1 . . . . . 1 . Reactor . | . . . . . . . . . . . . . Propulsion 39 | 2 2 1 . . 7 3 6 1 10 3 4 . Treads 17 | 1 . 1 . . 5 3 1 1 2 1 2 . Leg 12 | . . . . . . . 4 . 7 . 1 . Wheel 10 | 1 2 . . . 2 . 1 . 1 2 1 . Hover . | . . . . . . . . . . . . . Flight . | . . . . . . . . . . . . . Utility 31 | 2 1 3 . . 5 5 2 4 5 2 2 . Device 16 | 1 . 3 . . 1 3 1 1 4 1 1 . Storage 4 | 1 1 . . . . . 1 . 1 . . . Processor 4 | . . . . . 2 . . 1 . 1 . . Hackware 1 | . . . . . 1 . . . . . . . Protection 6 | . . . . . 1 2 . 2 . . 1 . Artifact . | . . . . . . . . . . . . . Weapon 26 | 2 1 . . 1 2 7 2 3 6 1 1 . Energy Gun 3 | 1 . . . 1 . . . . 1 . . . Energy Cannon 4 | . . . . . 1 3 . . . . . . Ballistic Gun 11 | 1 . . . . 1 2 2 1 3 1 . . Ballistic Cannon 5 | . 1 . . . . . . 1 2 . 1 . Launcher 1 | . . . . . . 1 . . . . . . Special Weapon 1 | . . . . . . 1 . . . . . . Impact Weapon . | . . . . . . . . . . . . . Slashing Weapon 1 | . . . . . . . . 1 . . . . Piercing Weapon . | . . . . . . . . . . . . . Special Melee Weapon . | . . . . . . . . . . . . . Unidentified Prototypes 9 | . . 2 . . 2 . 1 1 1 . 2 . Parts Lost 49 | . 4 1 . . 3 5 7 2 15 3 6 3 Power 5 | . 1 . . . . . 1 . 1 1 1 . Propulsion 29 | . 2 1 . . 3 3 4 . 9 2 4 1 Utility 10 | . . . . . . 2 2 2 2 . 1 1 Weapon 5 | . 1 . . . . . . . 3 . . 1 Highest Loss Streak 7 | . 2 1 . . 1 3 5 2 7 2 6 2 To Critical Strikes 2 | . . . . . . . . . 2 . . . Average Backups 19 | 3 9 16 17 18 18 18 19 23 22 23 18 17 Power 1 | . 1 2 2 2 1 1 1 2 2 1 . . Propulsion 1 | 1 2 2 2 2 1 1 1 1 1 2 . . Utility 7 | . 1 4 5 5 5 5 6 8 9 9 9 10 Weapon 9 | . 3 8 8 9 9 10 10 11 10 9 7 7 Tool/Special . | . . . . . . . . . . . . . Unused Backups 32 | . . 1 . . 10 5 2 1 2 . 1 10 Power 3 | . . 1 . . 1 . . . 1 . . . Propulsion . | . . . . . . . . . . . . . Utility 11 | . . . . . 3 1 . . . . 1 6 Weapon 18 | . . . . . 6 4 2 1 1 . . 4 Tool/Special . | . . . . . . . . . . . . . Average Slot Usage (%) 86 | . 98 99 100 100 98 95 93 94 78 70 67 56 Engine 7 | . 13 14 14 14 5 9 9 7 6 6 2 . Treads 15 | . 14 14 14 14 23 28 19 5 6 20 10 14 Leg 6 | . . . . . . . 6 30 17 . 5 7 Wheel 7 | . 13 14 14 14 11 3 7 . 7 2 11 3 Device 9 | . 14 13 14 14 5 8 8 8 9 8 12 7 Storage 8 | . 14 14 14 14 9 9 9 7 7 7 7 7 Processor 6 | . . . . . 8 9 9 10 7 11 2 . Protection 3 | . . . . . 3 8 5 6 2 . 4 7 Energy Gun 3 | . 14 14 14 14 4 . . . 1 . 1 . Energy Cannon 1 | . . . . . 4 6 6 . . . . . Ballistic Gun 5 | . 7 . . . 5 10 11 12 6 2 1 . Ballistic Cannon 4 | . 6 14 14 14 3 . . 1 . 6 5 3 Peak Build Rating 78 | 7 8 17 18 20 28 43 43 49 78 77 60 60 Average Rating 39 | 5 7 13 17 19 23 38 38 45 51 66 48 51 On Entrance 30 | . 7 8 17 18 20 28 43 38 45 76 41 60 Naked Turns . | . . . . . . . . . . . . . Heaviest Build 183 | 15 49 51 51 52 58 76 116 108 171 171 183 183 Greatest Support 178 | 20 20 16 16 16 32 90 90 60 162 178 40 40 Greatest Overweight (x) 54 | . 3 3 3 3 3 4 7 1 9 6 18 54 Average Overweight (x) 3 | . 1 2 3 3 2 1 3 1 2 1 10 18 Largest Inventory Capacity 30 | 8 20 20 20 20 20 20 25 25 30 30 30 30 Average Capacity 23 | 7 12 20 20 20 20 20 22 25 26 30 30 30 Most Carried 29 | 5 16 20 19 20 20 20 25 25 29 29 26 19 Average Carried 20 | 3 9 16 17 19 19 19 20 24 24 27 21 19 Final Capacity 30 | 8 20 20 20 20 20 20 25 25 30 30 30 30 Final Carried 29 | 5 16 17 19 20 20 20 25 25 29 27 19 19 Class Distribution -------------------- 45% | Scavenger-Mutant 26% | Hauler-Mutant 22% | Mutant 4% | Skirmisher Dominant Class ---------------- Mutant | -10/Materials Mutant | -10/Mines Mutant | -10/Exiles Skirmisher | -9/Mines Mutant | -8/Materials Scavenger-Mutant | -8/Garrison Scavenger-Mutant | -8/Materials Scavenger-Mutant | -7/Factory Scavenger-Mutant | -7/Garrison Hauler-Mutant | -7/Factory Hauler-Mutant | -7/Lower Caves Hauler-Mutant | -7/Lower Caves Resources | -11 -10 -10 -10 -9 -8 -8 -8 -7 -7 -7 -7 -7 ----------- Run | Yrd Mat Min Exi Min Mat Gar Mat Fac Gar Fac Low Low Matter Collected 4601 | 300 178 117 . . 473 894 243 358 1325 419 288 6 Remotely . | . . . . . . . . . . . . . Salvage Created 5234 | 116 447 144 . . 722 795 453 341 1547 550 99 20 Parts 272 | 3 31 11 . . 36 50 17 17 68 34 4 1 Haulers Intercepted 4 | . 1 . . . 2 . . 1 . . . . Recyclers Shooed 1 | . . . . . . . . . . 1 . . Parts Field Recycled . | . . . . . . . . . . . . . Retrieved Matter . | . . . . . . . . . . . . . Parts Self-Destructed 4 | . . . . . . . . . . . 4 . Prevented . | . . . . . . . . . . . . . Kills | -11 -10 -10 -10 -9 -8 -8 -8 -7 -7 -7 -7 -7 ------- Run | Yrd Mat Min Exi Min Mat Gar Mat Fac Gar Fac Low Low Combat Hostiles Destroyed 115 | . 11 7 . . 16 25 10 7 23 9 5 2 Melee 1 | . . . . . . . . . . . . 1 Guns 66 | . 9 3 . . 7 10 4 6 16 7 4 . Cannons 36 | . 2 4 . . 9 6 6 1 4 2 1 1 AOE 11 | . . . . . . 8 . . 3 . . . Classes Destroyed 16 | 2 4 . . . 2 3 3 1 . 1 . . Worker 4 | . . . . . . . 1 1 . 2 . . Builder 1 | . . . . . . . . . . 1 . . Tunneler 1 | 1 . . . . . . . . . . . . Hauler 4 | . 1 . . . 2 . . 1 . . . . Recycler 5 | 1 1 . . . 2 . . . . 1 . . Watcher 7 | . 2 . . . 2 . . . . 3 . . Swarmer 42 | . 6 5 . . 8 7 2 1 6 1 4 2 Cutter 3 | . . . . . . 3 . . . . . . Grunt 33 | . 5 2 . . 3 3 4 2 12 2 . . Brawler 2 | . . . . . . . . 1 1 . . . Duelist 4 | . . . . . . . 2 1 1 . . . Protector 1 | . . . . . . . 1 . . . . . Sentry 18 | . . . . . 4 7 1 1 3 2 . . Hunter 4 | . . . . . 1 2 . . . 1 . . Programmer 6 | . . . . . . 2 . 1 . 3 . . Behemoth 2 | . . . . . . 1 . . . . 1 . Best Kill Streak 6 | 2 4 3 . . 6 5 6 3 4 6 4 1 Combat Bots Only 6 | . 3 3 . . 4 5 6 3 4 2 4 1 Max Kills in Single Turn 3 | 1 1 1 . . 1 3 1 1 1 1 1 1 Gunslinging . | . . . . . . . . . . . . . Exploded 2 | . . . . . . 2 . . 1 . . . Melee 1 | . . . . . . . . . . . . 1 Uniques/NPCs Destroyed . | . . . . . . . . . . . . . Combat | -11 -10 -10 -10 -9 -8 -8 -8 -7 -7 -7 -7 -7 -------- Run | Yrd Mat Min Exi Min Mat Gar Mat Fac Gar Fac Low Low Hostile Shots Fired 1089 | . 66 26 . . 98 136 39 126 309 118 47 124 Missed 335 | . 18 9 . . 24 40 11 43 105 35 12 38 Hits 754 | . 48 17 . . 74 96 28 83 204 83 35 86 Melee 30 | . . . . . . 4 7 3 16 . . . Projectile 724 | . 48 17 . . 74 92 21 80 188 83 35 86 AOE 3 | . . . . . . 3 . . . . . . Critical Strikes 15 | . 1 . . . 2 3 1 . 6 1 1 . Damage Taken 10071 | . 578 130 . . 875 1621 670 882 2756 1047 709 803 Core 1122 | . 63 48 . . 91 163 53 90 328 67 189 30 Absorbed by Shields 105 | . . . . . . 71 . . 34 . . . Ignored by Resistances 46 | . . . . . . . . . . . . 46 Core Remaining (%) 66 | 100 . . . 55 . . 44 . . . . . Volleys Fired 405 | 10 42 12 . . 64 84 35 33 69 40 13 3 Largest 2 | 2 2 2 . . 2 2 2 2 2 2 1 1 Hottest 168 | 70 80 80 . . 93 168 115 62 67 67 65 65 Shots Fired 812 | 20 84 24 . . 127 153 71 66 146 88 30 3 Gun 494 | 20 73 12 . . 67 66 40 54 98 48 16 . Cannon 271 | . 11 12 . . 60 54 31 12 34 40 14 3 Launcher 30 | . . . . . . 16 . . 14 . . . Special 17 | . . . . . . 17 . . . . . . Kinetic 504 | 10 42 12 . . 63 66 40 66 114 73 15 3 Thermal 278 | 10 42 12 . . 64 71 31 . 18 15 15 . Explosive 30 | . . . . . . 16 . . 14 . . . Electromagnetic . | . . . . . . . . . . . . . Robot Hit Streak 19 | 6 5 11 . . 14 19 16 9 15 7 11 1 Robot Miss Streak 5 | 1 3 2 . . 5 4 2 4 4 5 1 1 Penetration Max . | . . . . . . . . . . . . . Secondary Targets 1 | . 1 . . . . . . . . . . . Max Gunslinging Chain 1 | . 1 . . . . . . . . . . . Autonomous 49 | . . . . . . . . . 18 15 16 . Shots Hit Robots 538 | 15 49 16 . . 82 90 50 47 114 51 23 1 Core Hits 243 | 3 21 8 . . 33 56 17 24 53 21 6 1 Critical Kills 2 | . . . . . . 2 . . . . . . Critical Parts Destroyed 1 | . . . . . . 1 . . . . . . Critical Strikes 18 | . . 1 . . 4 3 . 1 3 5 1 . Meltdown 2 | . . . . . . 2 . . . . . . Destroy 2 | . . . . . 1 1 . . . . . . Blast 12 | . . 1 . . 3 . . 1 1 5 1 . Sever 2 | . . . . . . . . . 2 . . . Melee Attacks 48 | . . . . . . . . 1 47 . . . Impact . | . . . . . . . . . . . . . Slashing 48 | . . . . . . . . 1 47 . . . Piercing . | . . . . . . . . . . . . . Sneak Attacks . | . . . . . . . . . . . . . Combat Hostiles . | . . . . . . . . . . . . . Follow-up Attacks . | . . . . . . . . . . . . . Damage Inflicted 14863 | 193 691 277 . . 1500 3069 1280 1014 4368 1385 1029 57 Guns 6481 | 193 588 105 . . 830 919 507 852 1353 834 300 . Cannons 4449 | . 103 172 . . 670 862 773 144 408 534 729 54 Explosions 1477 | . . . . . . 1048 . . 429 . . . Melee 2178 | . . . . . . . . . 2178 . . . Ramming 38 | . . . . . . . . 18 . 17 . 3 Kinetic 7091 | 105 338 172 . . 899 919 507 996 1307 1065 729 54 Thermal 4079 | 88 353 105 . . 601 1102 773 . 454 303 300 . Explosive 1477 | . . . . . . 1048 . . 429 . . . Electromagnetic . | . . . . . . . . . . . . . Impact . | . . . . . . . . . . . . . Slashing 2178 | . . . . . . . . . 2178 . . . Piercing . | . . . . . . . . . . . . . Highest Corruption 17 | . . . . . . 3 3 4 17 17 14 14 Average Corruption 10 | . . . . . . 1 3 3 15 13 14 14 Corruption Purged 5 | . . . . . . . . . . 5 . . Corruption Blocked . | . . . . . . . . . . . . . Effects 287 | . . . . . . 13 14 9 110 50 88 3 Message Errors 77 | . . . . . . 2 5 3 30 9 27 1 Matter Fused 66 | . . . . . . 3 1 4 25 13 19 1 Heat Flow Errors 35 | . . . . . . 1 1 1 16 7 9 . Energy Discharges 41 | . . . . . . 2 2 . 13 9 14 1 Parts Rejected 2 | . . . . . . . . 1 . 1 . . Parts Fused 2 | . . . . . . . . . . 1 1 . Data Loss (minor) 35 | . . . . . . 2 4 . 16 5 8 . Data Loss (major) 11 | . . . . . . 1 . . 1 2 7 . Misfires 8 | . . . . . . 2 1 . 2 1 2 . Alerts 4 | . . . . . . . . . 3 1 . . Misdirections 1 | . . . . . . . . . . . 1 . Weapon Failures 5 | . . . . . . . . . 4 1 . . Overload Shots . | . . . . . . . . . . . . . Overflow Damage 101 | . . 4 . . 2 22 4 . 9 7 53 . Projectiles 84 | . . 4 . . 2 14 4 . . 7 53 . Explosions 8 | . . . . . . 8 . . . . . . Melee 9 | . . . . . . . . . 9 . . . Knockbacks 10 | . . 2 . . . . . . 4 4 . . Impact 1 | . . . . . . . . . . 1 . . Kinetic 9 | . . 2 . . . . . . 4 3 . . Secondary . | . . . . . . . . . . . . . Self-Inflicted Damage 165 | . . . . . . 40 . . 11 114 . . Shots 3 | . . . . . . 1 . . 1 1 . . Rammed 3 | . . . . . . . . . . 2 . 1 Targets Rammed 5 | . . . . . . . . 1 . 2 . 2 Kicked 1 | . . . . . . . . 1 . . . . Crushed 1 | . . . . . . . . . . . . 1 Highest Temperature 480 | 45 261 90 . . 282 289 480 140 249 201 268 48 Average Temperature 74 | 18 74 39 . . 67 67 116 24 104 77 82 21 Received Heat Transfer 1965 | . 258 6 . . 234 189 189 102 549 222 72 144 Effects 6 | . . . . . 1 . 5 . . . . . Shutdowns 1 | . . . . . . . 1 . . . . . Interference 1 | . . . . . 1 . . . . . . . Damage (major) 4 | . . . . . . . 4 . . . . . Siege Activations . | . . . . . . . . . . . . . Martial Activations . | . . . . . . . . . . . . . Shielding Activations . | . . . . . . . . . . . . . Robots Disrupted . | . . . . . . . . . . . . . Combat Hostiles . | . . . . . . . . . . . . . Robots Corrupted . | . . . . . . . . . . . . . Combat Hostiles . | . . . . . . . . . . . . . Parts Fried . | . . . . . . . . . . . . . Impact Corruptions . | . . . . . . . . . . . . . Robots Melted 2 | . . . . . . 2 . . . . . . Combat Hostiles 1 | . . . . . . 1 . . . . . . Parts Melted 8 | . 1 . . . 3 1 1 . . . 2 . Heat Transferred 6984 | 259 1036 296 . . 1258 1869 934 . 592 370 370 . Parts Sabotaged . | . . . . . . . . . . . . . Parts Stolen . | . . . . . . . . . . . . . Parts Stripped . | . . . . . . . . . . . . . Power Chain Reactions . | . . . . . . . . . . . . . Alert | -11 -10 -10 -10 -9 -8 -8 -8 -7 -7 -7 -7 -7 ------- Run | Yrd Mat Min Exi Min Mat Gar Mat Fac Gar Fac Low Low Maximum Alert Level 5 | . . . . . . 4 3 1 5 3 . . Low Security (%) 35 | 100 100 100 . 100 100 7 . 75 3 . . . Level 1 8 | . . . . . . 12 . 24 18 . . . Level 2 21 | . . . . . . 27 69 . 24 38 . . Level 3 23 | . . . . . . 35 30 . 24 61 . . Level 4 10 | . . . . . . 17 . . 27 . . . Level 5 . | . . . . . . . . . 1 . . . High Security . | . . . . . . . . . . . . . Max Security . | . . . . . . . . . . . . . Peak Influence 1614 | 10 142 60 . . 170 1568 802 280 1614 863 . . Initial 847 | . . 25 . . . 100 764 280 123 847 . . Average 518 | . 60 15 . . 91 758 688 162 782 723 . . Influence Increases 5366 | 10 313 170 . . 484 1608 292 242 1721 366 120 40 Destroy 0b10 Robot/C 2400 | . 220 140 . . 320 540 200 140 520 180 100 40 Destroy 0b10 Robot/NC 155 | 10 20 . . . 30 10 10 10 30 35 . . Destroy Leader 412 | . 56 30 . . 88 30 40 32 40 76 20 . Allied During Kill 18 | . . . . . . 4 6 . 8 . . . Successful Hack 73 | . 14 . . . . 44 . . 7 8 . . Disable Machine 90 | . . . . . 15 . 15 30 . 30 . . Anti-Garrison Action 1750 | . . . . . . 850 . . 900 . . . Destroy Structure 288 | . 3 . . . 1 130 6 . 126 22 . . Partial Spotted 15 | . . . . . . . . . 15 . . . Lose Combat Pursuer 165 | . . . . . 30 . 15 30 75 15 . . Influence Decreases 5356 | 10 246 237 . . 330 194 1244 682 283 1275 825 30 Entered New Map 2318 | . . 42 . . . 54 804 336 53 767 262 . Time Decay 2353 | 10 206 190 . . 300 . 350 326 . 478 483 10 Lost Part 475 | . 40 5 . . 30 50 70 20 150 30 60 20 Lost Ally 210 | . . . . . . 90 20 . 80 . 20 . Squads Dispatched 10 | . 1 . . . 1 . 1 4 . 3 . . Investigation . | . . . . . . . . . . . . . Extermination 4 | . . . . . . . . 1 . 3 . . Reinforcement 2 | . 1 . . . . . . 1 . . . . Assault 1 | . . . . . . . 1 . . . . . Garrison 3 | . . . . . 1 . . 2 . . . . Intercept . | . . . . . . . . . . . . . Searches Triggered . | . . . . . . . . . . . . . Construction Impeded . | . . . . . . . . . . . . . Haulers Reinforced 1 | . . . . . . . . 1 . . . . Active Scanning Responses . | . . . . . . . . . . . . . Cargo Convoy Interrupts . | . . . . . . . . . . . . . Stealth | -11 -10 -10 -10 -9 -8 -8 -8 -7 -7 -7 -7 -7 --------- Run | Yrd Mat Min Exi Min Mat Gar Mat Fac Gar Fac Low Low Distress Signals 8 | . . . . 2 3 . 2 . . 1 . . Communications Jammed . | . . . . . . . . . . . . . Distress Signals . | . . . . . . . . . . . . . Times Spotted 160 | . 17 8 . . 29 26 16 10 29 17 5 3 Peak Tracking Total 7 | . 3 3 . . 6 4 7 4 6 4 3 3 Tactical Retreats 9 | . . . . . 1 . 1 2 4 1 . . Traps | -11 -10 -10 -10 -9 -8 -8 -8 -7 -7 -7 -7 -7 ------- Run | Yrd Mat Min Exi Min Mat Gar Mat Fac Gar Fac Low Low Traps Triggered 29 | . . . . . . 14 1 . 7 7 . . Indirectly . | . . . . . . . . . . . . . Trap Hack Attempts . | . . . . . . . . . . . . . Triggered . | . . . . . . . . . . . . . Disarmed . | . . . . . . . . . . . . . Reprogrammed . | . . . . . . . . . . . . . Reused . | . . . . . . . . . . . . . Traps Extracted . | . . . . . . . . . . . . . Installed . | . . . . . . . . . . . . . Triggered . | . . . . . . . . . . . . . Machines | -11 -10 -10 -10 -9 -8 -8 -8 -7 -7 -7 -7 -7 ---------- Run | Yrd Mat Min Exi Min Mat Gar Mat Fac Gar Fac Low Low Machines Disabled 19 | . . . . . 1 8 1 2 5 2 . . Max in Single Turn 1 | . . . . . 1 1 . 1 1 1 . . Garrison Relay 8 | . . . . . . 5 . . 3 . . . Phase Generator 2 | . . . . . . 1 . . 1 . . . Machines Repaired . | . . . . . . . . . . . . . Machines Dismantled . | . . . . . . . . . . . . . Machines Sabotaged . | . . . . . . . . . . . . . Overloaded Fab Kills . | . . . . . . . . . . . . . Hacking | -11 -10 -10 -10 -9 -8 -8 -8 -7 -7 -7 -7 -7 --------- Run | Yrd Mat Min Exi Min Mat Gar Mat Fac Gar Fac Low Low Machines Accessed 23 | . 4 1 2 . 1 4 1 3 2 4 1 . Terminals 17 | . 4 . . . . 4 1 2 2 4 . . Fabricators . | . . . . . . . . . . . . . Repair Stations . | . . . . . . . . . . . . . Recycling Units . | . . . . . . . . . . . . . Scanalyzers . | . . . . . . . . . . . . . Garrison Access 2 | . . . . . 1 . . 1 . . . . Total Hacks 47 | . 17 1 2 . 1 7 1 4 5 8 1 . Successful 15 | . 2 1 2 . 1 3 . 1 1 3 1 . Failed 32 | . 15 . . . . 4 1 3 4 5 . . Catastrophic 6 | . 2 . . . . 1 . . . 3 . . Database Lockouts . | . . . . . . . . . . . . . Manual 19 | . 13 . 1 . . 1 1 . . 3 . . Terminals 41 | . 17 . . . . 7 1 3 5 8 . . Fabricators . | . . . . . . . . . . . . . Repair Stations . | . . . . . . . . . . . . . Recycling Units . | . . . . . . . . . . . . . Scanalyzers . | . . . . . . . . . . . . . Garrison Access 2 | . . . . . 1 . . 1 . . . . Terminal Hacks 13 | . 2 1 2 . . 3 . . 1 3 1 . Record 1 | . . . 1 . . . . . . . . . Robot Analysis 1 | . 1 . . . . . . . . . . . Prototype ID Bank 1 | . . . . . . . . . . 1 . . Open Door 3 | . . 1 . . . . . . 1 . 1 . Branch Access Points 2 | . 1 . . . . . . . . 1 . . Emergency Access Points 2 | . . . . . . 1 . . . 1 . . Garrison Registry 1 | . . . . . . 1 . . . . . . Security Stations 1 | . . . . . . 1 . . . . . . Proto ID Catalog 1 | . . . 1 . . . . . . . . . Fabricator Hacks . | . . . . . . . . . . . . . Repair Station Hacks . | . . . . . . . . . . . . . Recycling Unit Hacks . | . . . . . . . . . . . . . Scanalyzer . | . . . . . . . . . . . . . Garrison Access Hacks 2 | . . . . . 1 . . 1 . . . . Unlock Access 2 | . . . . . 1 . . 1 . . . . Unauthorized Hacks . | . . . . . . . . . . . . . Terminals . | . . . . . . . . . . . . . Fabricators . | . . . . . . . . . . . . . Repair Stations . | . . . . . . . . . . . . . Recycling Units . | . . . . . . . . . . . . . Scanalyzers . | . . . . . . . . . . . . . Garrison Access . | . . . . . . . . . . . . . Data Cores Recovered . | . . . . . . . . . . . . . Used . | . . . . . . . . . . . . . Hacking Detections 17 | . 4 . . . 1 3 1 3 2 3 . . Full Trace Events 5 | . 2 . . . . 1 . . 2 . . . Feedback Events . | . . . . . . . . . . . . . Feedback Blocked . | . . . . . . . . . . . . . Robot Schematics Acquired . | . . . . . . . . . . . . . Robots Built . | . . . . . . . . . . . . . Authchips . | . . . . . . . . . . . . . Time . | . . . . . . . . . . . . . Total Robot Build Rating . | . . . . . . . . . . . . . Part Schematics Acquired . | . . . . . . . . . . . . . Parts Built . | . . . . . . . . . . . . . Authchips . | . . . . . . . . . . . . . Time . | . . . . . . . . . . . . . Total Part Build Rating . | . . . . . . . . . . . . . Parts Repaired . | . . . . . . . . . . . . . Time . | . . . . . . . . . . . . . Parts Recycled . | . . . . . . . . . . . . . Recycled Matter . | . . . . . . . . . . . . . Retrieved Matter . | . . . . . . . . . . . . . Retrieved Components . | . . . . . . . . . . . . . Parts Scanalyzed . | . . . . . . . . . . . . . Part Schematics Acquired . | . . . . . . . . . . . . . Parts Damaged . | . . . . . . . . . . . . . Bothacking | -11 -10 -10 -10 -9 -8 -8 -8 -7 -7 -7 -7 -7 ------------ Run | Yrd Mat Min Exi Min Mat Gar Mat Fac Gar Fac Low Low Used RIF Installer 3 | . . . . . . 2 . . 1 . . . Robot Detection 1 | . . . . . . 1 . . . . . . Patrol Navigation 1 | . . . . . . . . . 1 . . . Robots Hacked . | . . . . . . . . . . . . . Non-combat . | . . . . . . . . . . . . . Combat . | . . . . . . . . . . . . . Robot Hacks Applied . | . . . . . . . . . . . . . Relay Couplers Released 32 | . . . . . . 21 . . 11 . . . Machine Destruction 29 | . . . . . . 18 . . 11 . . . Programmers 3 | . . . . . . 3 . . . . . . Fabnet Peak Effective % . | . . . . . . . . . . . . . Robots Rewired 7 | . . . . . . 3 . . 4 . . . Allies Hacked . | . . . . . . . . . . . . . Hacks Repelled . | . . . . . . . . . . . . . Allies | -11 -10 -10 -10 -9 -8 -8 -8 -7 -7 -7 -7 -7 -------- Run | Yrd Mat Min Exi Min Mat Gar Mat Fac Gar Fac Low Low Total Allies 8 | . . . . . . 4 . . 4 . . . Largest Group 3 | . . . . . . 3 1 . 2 . . . Highest-Rated Group 120 | . . . . . . 120 31 . 45 . . . Highest-Rated Ally 40 | . . . . . . 40 31 . 31 . . . Total Orders 2 | . . . . . . 2 . . . . . . RETURN 2 | . . . . . . 2 . . . . . . Ally Attacks 59 | . . . . . . 27 11 . 18 . 3 . Total Damage 1074 | . . . . . . 419 125 . 499 . 31 . Kills 6 | . . . . . . 2 1 . 3 . . . Allies Corrupted 3 | . . . . . . 3 . . . . . . Allies Melted . | . . . . . . . . . . . . . Intel | -11 -10 -10 -10 -9 -8 -8 -8 -7 -7 -7 -7 -7 ------- Run | Yrd Mat Min Exi Min Mat Gar Mat Fac Gar Fac Low Low Active Infowar (turns) 4752 | 47 729 610 335 674 551 . . . . . 1806 . Optics 530 | . . . . . 530 . . . . . . . Sensors 3277 | . . 431 335 674 31 . . . . . 1806 . Seismic 1394 | 47 729 179 . . 439 . . . . . . . Robot Analysis Total 1 | . 1 . . . . . . . . . . . Derelict Logs Recovered 5 | . . 1 . 2 . . . . . . 2 . Drone Launches 7 | . . . . . . 6 . . . . 1 . Drone Recoveries 4 | . . . . . . 4 . . . . . . Exploration | -11 -10 -10 -10 -9 -8 -8 -8 -7 -7 -7 -7 -7 ------------- Run | Yrd Mat Min Exi Min Mat Gar Mat Fac Gar Fac Low Low Turns Passed 13343 | 148 729 649 335 674 787 2538 789 730 2577 1229 2082 76 Spaces Moved 6082 | 72 384 406 231 407 340 1032 351 295 1112 618 825 9 Core 2 | 1 . . . . . . . . . . . 1 Treads 1956 | 58 162 . . . . 857 35 . 329 511 2 2 Legs 648 | . . . . . . . 72 295 281 . . . Wheels 3476 | 13 222 406 231 407 340 175 244 . 502 107 823 6 Hover . | . . . . . . . . . . . . . Flight . | . . . . . . . . . . . . . Fastest Speed 50 | 50 80 130 145 145 115 145 160 190 135 160 146 350 Average Speed 183 | 144 145 144 145 145 141 198 187 190 190 172 243 663 Slowest Speed 2750 | 160 160 145 145 145 145 240 330 190 750 240 960 2750 Overloaded Moves . | . . . . . . . . . . . . . Propulsion Burnouts . | . . . . . . . . . . . . . Robots Hopped . | . . . . . . . . . . . . . Potential Cave-ins . | . . . . . . . . . . . . . Cave-ins Triggered . | . . . . . . . . . . . . . Exploration Rate (%) 47 | 6 49 78 60 70 28 96 29 7 92 23 70 3 Regions Visited 12 Branch Regions 5 Pre-discovered Areas 1 | . . . 1 . . . . . . . . . Known Exits Taken 4 | . 1 . . . 1 . . 1 . 1 . . Unknown Exits Taken 6 | 1 . 1 1 1 . . 1 . . . 1 . Scrap Searched 4 | . . 1 . 2 . . . . . . 1 . Spaces Dug 10 | . . . . . . . . . 9 . 1 . Terrain Destroyed 257 | . . . . . . 90 5 . 114 35 9 4 Melee 9 | . . . . . . . . . 9 . . . Projectile 25 | . . . . . . . 5 . . 7 9 4 AOE 223 | . . . . . . 90 . . 105 28 . . Terrain Rammed . | . . . . . . . . . . . . . Walls Destroyed . | . . . . . . . . . . . . . Machines Disabled . | . . . . . . . . . . . . . Actions | -11 -10 -10 -10 -9 -8 -8 -8 -7 -7 -7 -7 -7 --------- Run | Yrd Mat Min Exi Min Mat Gar Mat Fac Gar Fac Low Low Total 7393 | 93 469 442 231 491 527 1338 425 402 1370 711 880 14 Wait 424 | . 25 11 . 82 68 112 10 45 35 16 20 . Move 6071 | 71 383 405 230 406 339 1031 350 295 1111 617 824 9 Hop . | . . . . . . . . . . . . . Pick Up 77 | 5 13 3 1 1 15 9 11 8 7 3 1 . Fast Attach 53 | 7 . 1 . 1 8 5 5 3 12 7 4 . Attach 39 | . 4 2 . . 4 3 2 4 8 4 8 . Detach 15 | . . 1 . . 1 1 1 1 4 3 3 . Swap 61 | . 2 4 . . 7 23 4 5 14 . 2 . Drop 73 | . . 3 . 1 21 15 7 6 10 6 4 . Fire 405 | 10 42 12 . . 64 84 35 33 69 40 13 3 Melee 48 | . . . . . . . . 1 47 . . . Ram . | . . . . . . . . . . . . . Kick 1 | . . . . . . . . 1 . . . . Crush 4 | . . . . . . . . . . 2 . 2 Escape Stasis 63 | . . . . . . 22 . . 28 13 . . Rewire 59 | . . . . . . 33 . . 25 . 1 . Trap . | . . . . . . . . . . . . . Miscellaneous . | . . . . . . . . . . . . . Route ------- -11/Scrapyard -10/Materials (discovered 3 exits: [*Mat] / *Min x2) -10/Mines (discovered 3 exits: [*Mat x2] / *Exi) -10/Exiles -9/Mines -8/Materials (discovered 3 exits: *Fac / [*Sto] / Gar) -8/Garrison (discovered 3 exits: *Mat x3) -8/Materials (discovered 2 exits: *Fac / [*Sto]) -7/Factory (discovered 3 exits: *Fac x2 / Gar) -7/Garrison (discovered 3 exits: *Fac x3) -7/Factory (discovered 3 exits: *Fac / *Low x2) -7/Lower Caves -7/Lower Caves History --------- Turn | Location | Event 28 | -11/Scrapyard | Discovered new exit (range 15) 149 | -11/Scrapyard | Entered Materials 302 | -10/Materials | Build established: Mutant 699 | -10/Materials | Discovered new exit (range 9) 732 | -10/Materials | Identified exit to Mines 878 | -10/Materials | Entered Mines 885 | -10/Mines | Found the Drone Emporium 892 | -10/Mines | Found Prototype Device 893 | -10/Mines | Identified Thief Drone Bay 920 | -10/Mines | Discovered new exit (range 15) 1098 | -10/Mines | Found a damaged Exp. Sensor Array with a note attached 1101 | -10/Mines | Found Prototype Device 1102 | -10/Mines | Identified Exp. Sensor Array 1279 | -10/Mines | Learned Materials garrison access intel 1444 | -10/Mines | Discovered new exit (range 9) 1520 | -10/Mines | Deemed a non-threat by the Exiles lab entrance 1521 | -10/Mines | Discovered new exit (range 5) 1527 | -10/Mines | Entered Exiles 1562 | -10/Exiles | Met 8R-AWN 1588 | -10/Exiles | Met EX-HEX 1636 | -10/Exiles | Met EX-BIN 1652 | -10/Exiles | Aligned with FarCom system 1654 | -10/Exiles | Given EX-Vault access code 1691 | -10/Exiles | Opened EX-Vault 1703 | -10/Exiles | Found AWS/Thermal 1733 | -10/Exiles | Warned to stay clear of 0b10 Research branches 1751 | -10/Exiles | Exiles lab attacked by MAIN.C 1804 | -10/Exiles | Learned location of Zion (-7) 1845 | -10/Exiles | Discovered new exit (range 14) 1862 | -10/Exiles | Left Exiles lab with AWS/Thermal 1862 | -10/Exiles | Entered Mines 1970 | -9/Mines | Assembled infested the area 1975 | -9/Mines | Assisted by a Guerilla fighting off Assembled 2022 | -9/Mines | Learned Materials trap positions 2159 | -9/Mines | Build established: Skirmisher 2389 | -9/Mines | Learned Materials terminal intel 2394 | -9/Mines | Discovered new exit (range 15) 2536 | -9/Mines | Entered Materials 2536 | -8/Materials | Evolved 4 slots: Propulsion x2, Utility x2 2537 | -8/Materials | Loaded intel: 9 trap records 2538 | -8/Materials | Loaded intel: 12 terminal locations 2539 | -8/Materials | Loaded intel: 1 garrison access location 2846 | -8/Materials | Discovered new exit (range 18) 2856 | -8/Materials | Build established: Mutant 2921 | -8/Materials | Discovered new exit (range 18) 3270 | -8/Materials | Garrison activated, responded to threat 3320 | -8/Materials | Identified exit to Garrison 3323 | -8/Materials | Entered Garrison 3521 | -8/Garrison | Spotted B-75 Beast 3582 | -8/Garrison | Destroyed B-75 Beast 3613 | -8/Garrison | Lost 3 parts (1n2u) 3633 | -8/Garrison | Triggered checkpoint 3654 | -8/Garrison | Garrison Relay disabled 3771 | -8/Garrison | Triggered checkpoint 3825 | -8/Garrison | Triggered checkpoint 3854 | -8/Garrison | Build established: Scavenger-Mutant 3912 | -8/Garrison | Discovered new exit (range 12) 3987 | -8/Garrison | Triggered checkpoint 4021 | -8/Garrison | Garrison Relay disabled 4203 | -8/Garrison | Learned Materials security intel 4345 | -8/Garrison | Triggered checkpoint 4608 | -8/Garrison | Triggered checkpoint 4640 | -8/Garrison | Garrison Relay disabled 4825 | -8/Garrison | Discovered new exit (range 8) 4884 | -8/Garrison | Phase Generator disabled 4938 | -8/Garrison | Spotted B-75 Beast 4974 | -8/Garrison | Installed Relay Interface Framework 5305 | -8/Garrison | Discovered new exit (range 28) 5305 | -8/Garrison | Discovered new exit (range 62) 5305 | -8/Garrison | Discovered new exit (range 55) 5468 | -8/Garrison | Lost 3 allies 5478 | -8/Garrison | Expanded RIF knowledge: Robot Detection 5689 | -8/Garrison | Triggered checkpoint 5694 | -8/Garrison | Rescued a captive Derelict 5714 | -8/Garrison | Garrison Relay disabled 5797 | -8/Garrison | Garrison Relay disabled 5861 | -8/Garrison | Entered Materials 5861 | -8/Materials | Accompanied by 1 ally 5861 | -8/Materials | Discovered new exit (range 8) 6261 | -8/Materials | First assault squad dispatched 6389 | -8/Materials | Core integrity fell below 50% 6464 | -8/Materials | Lost 5 parts (3n2u) 6542 | -8/Materials | Discovered new exit (range 3) 6650 | -8/Materials | Entered Factory 6650 | -7/Factory | Evolved 2 slots: Propulsion x1, Utility x1 6690 | -7/Factory | Discovered new exit (range 15) 6885 | -7/Factory | Discovered new exit (range 11) 7021 | -7/Factory | Identified exit to Factory 7195 | -7/Factory | Garrison activated, responded to threat 7380 | -7/Factory | Identified exit to Garrison 7380 | -7/Factory | Entered Garrison 7602 | -7/Garrison | Lost 5 parts (1p3n1w) 7762 | -7/Garrison | System corruption reached 10% 7792 | -7/Garrison | Lost 7 parts (4n2u1w) 7901 | -7/Garrison | Discovered new exit (range 14) 7926 | -7/Garrison | Triggered checkpoint 7941 | -7/Garrison | Garrison Relay disabled 8060 | -7/Garrison | Triggered checkpoint 8253 | -7/Garrison | Discovered new exit (range 12) 8492 | -7/Garrison | Triggered checkpoint 8548 | -7/Garrison | Expanded RIF knowledge: Patrol Navigation 8590 | -7/Garrison | Garrison Relay disabled 8640 | -7/Garrison | Discovered new exit (range 9) 8796 | -7/Garrison | Phase Generator disabled 9058 | -7/Garrison | Garrison Relay disabled 9220 | -7/Garrison | Core integrity fell below 50% 9222 | -7/Garrison | Build established: Hauler-Mutant 9294 | -7/Garrison | Lost 4 allies 9558 | -7/Garrison | Build established: Scavenger-Mutant 9828 | -7/Garrison | Triggered checkpoint 9873 | -7/Garrison | Identified exit to Factory 9957 | -7/Garrison | Entered Factory 10408 | -7/Factory | Build established: Hauler-Mutant 10791 | -7/Factory | Identified exit to Lower Caves 10893 | -7/Factory | Discovered exit to Factory (range 10) 11186 | -7/Factory | Entered Lower Caves 11402 | -7/Lower Caves | Learned Factory terminal intel 11647 | -7/Lower Caves | Learned Factory terminal intel 11889 | -7/Lower Caves | Spotted B-75 Beast 11892 | -7/Lower Caves | Core integrity fell below 20% 11912 | -7/Lower Caves | AWS/Thermal suddenly broke down 11944 | -7/Lower Caves | Destroyed B-75 Beast 11961 | -7/Lower Caves | Lost 6 parts (1p4n1u) 12126 | -7/Lower Caves | Discovered new exit (range 15) 12488 | -7/Lower Caves | Found Alien Artifact 12488 | -7/Lower Caves | Identified Core Expander 12488 | -7/Lower Caves | Installed Core Expander, added new Utility slot 12731 | -7/Lower Caves | Found Prototype Device 12993 | -7/Lower Caves | Identified Heart of Steel 13268 | -7/Lower Caves | Entered another Lower Caves area 13270 | -7/Lower Caves | Attracted the attention of an 0b10 checkpoint 13344 | -7/Lower Caves | Destroyed by Y-54 Guardian with Gatling Laser Last Messages --------------- 13184_ Z E#3 DE3LPV0P:USZAOJOBZN 13199_ System corrupted: Matter fused (-5). 13239_ %F#:E